[Event "Late-Titled-Tuesday-Blitz-March-12-2024"]
[Site "Chess.com"]
[Date "2024.03.12"]
[Round "10"]
[White "ExchangeAB"]
[Black "Malev212"]
[Result "0-1"]
[WhiteElo "2504"]
[BlackElo "2625"]
[TimeControl "180+1"]
[EndTime "15:53:04 PDT"]
[Termination "Malev212 won by resignation"]

1. d4 {[%clk 0:03:00.2]} 1... g6 {[%clk 0:02:58.8]} 2. Nf3 {[%clk 0:02:59.8]}
2... Bg7 {[%clk 0:02:58.6]} 3. Nbd2 {[%clk 0:02:59.6]} 3... c5 {[%clk
0:02:47.9]} 4. e3 {[%clk 0:02:55.2]} 4... cxd4 {[%clk 0:02:44.2]} 5. exd4 {[%clk
0:02:55.3]} 5... Nf6 {[%clk 0:02:43.4]} 6. c3 {[%clk 0:02:55.1]} 6... O-O {[%clk
0:02:43.2]} 7. Bd3 {[%clk 0:02:54.1]} 7... Nc6 {[%clk 0:02:36.5]} 8. O-O {[%clk
0:02:53.7]} 8... d6 {[%clk 0:02:36.4]} 9. Re1 {[%clk 0:02:53.6]} 9... e5 {[%clk
0:02:35.2]} 10. dxe5 {[%clk 0:02:41.2]} 10... dxe5 {[%clk 0:02:34.7]} 11. Ne4
{[%clk 0:02:40.6]} 11... Nxe4 {[%clk 0:02:09.7]} 12. Bxe4 {[%clk 0:02:41.5]}
12... Qc7 {[%clk 0:02:09]} 13. Bg5 {[%clk 0:02:38.1]} 13... Be6 {[%clk
0:02:03.7]} 14. Qe2 {[%clk 0:02:28.9]} 14... h6 {[%clk 0:01:51.1]} 15. Be3
{[%clk 0:02:26.3]} 15... f5 {[%clk 0:01:46.7]} 16. Bc2 {[%clk 0:02:24.1]} 16...
e4 {[%clk 0:01:39.6]} 17. Nd4 {[%clk 0:02:19.2]} 17... Nxd4 {[%clk 0:01:39.3]}
18. Bxd4 {[%clk 0:02:19.2]} 18... Bxd4 {[%clk 0:01:38.5]} 19. cxd4 {[%clk
0:02:19.2]} 19... Rad8 {[%clk 0:01:37.2]} 20. Bb3 {[%clk 0:02:09]} 20... Bxb3
{[%clk 0:01:32.9]} 21. axb3 {[%clk 0:02:09.9]} 21... Rxd4 {[%clk 0:01:16.2]} 22.
Rxa7 {[%clk 0:02:03.3]} 22... Rfd8 {[%clk 0:01:10.5]} 23. g3 {[%clk 0:01:52.3]}
23... Qb6 {[%clk 0:01:05.3]} 24. Ra4 {[%clk 0:01:16.9]} 24... Rd3 {[%clk
0:00:57.5]} 25. Ra3 {[%clk 0:00:53.5]} 25... Kg7 {[%clk 0:00:54.3]} 26. Rc1
{[%clk 0:00:44]} 26... Rd2 {[%clk 0:00:48.9]} 27. Qe3 {[%clk 0:00:44.1]} 27...
Qxe3 {[%clk 0:00:47.1]} 28. fxe3 {[%clk 0:00:45]} 28... Rxb2 {[%clk 0:00:41]}
29. Ra7 {[%clk 0:00:37.8]} 29... Kf6 {[%clk 0:00:37.4]} 30. Rxb7 {[%clk
0:00:33.1]} 30... Kg5 {[%clk 0:00:35.5]} 31. h4+ {[%clk 0:00:17.6]} 31... Kh5
{[%clk 0:00:28.8]} 32. Kh1 {[%clk 0:00:05.9]} 32... Rdd2 {[%clk 0:00:26.9]} 33.
g4+ {[%clk 0:00:05.9]} 0-1

[Event "Late-Titled-Tuesday-Blitz-March-12-2024"]
[Site "Chess.com"]
[Date "2024.03.12"]
[Round "10"]
[White "maximnovik"]
[Black "scarabee43"]
[Result "1-0"]
[WhiteElo "2611"]
[BlackElo "2810"]
[TimeControl "180+1"]
[EndTime "15:53:09 PDT"]
[Termination "maximnovik won by checkmate"]

1. e4 {[%clk 0:03:00]} 1... c5 {[%clk 0:02:57.3]} 2. Nf3 {[%clk 0:02:59.7]} 2...
e6 {[%clk 0:02:57.7]} 3. d4 {[%clk 0:02:56.9]} 3... cxd4 {[%clk 0:02:58.2]} 4.
Nxd4 {[%clk 0:02:57.3]} 4... Nc6 {[%clk 0:02:58.8]} 5. Nc3 {[%clk 0:02:55.7]}
5... Qc7 {[%clk 0:02:59.4]} 6. g3 {[%clk 0:02:55.4]} 6... a6 {[%clk 0:02:58.2]}
7. Bg2 {[%clk 0:02:55.3]} 7... Nf6 {[%clk 0:02:58.5]} 8. O-O {[%clk 0:02:54.8]}
8... Nxd4 {[%clk 0:02:59.2]} 9. Qxd4 {[%clk 0:02:54.5]} 9... Bc5 {[%clk
0:02:59.9]} 10. Bf4 {[%clk 0:02:54.6]} 10... d6 {[%clk 0:03:00.4]} 11. Qd2
{[%clk 0:02:54]} 11... h6 {[%clk 0:02:59.4]} 12. Rad1 {[%clk 0:02:45.1]} 12...
e5 {[%clk 0:02:59.5]} 13. Be3 {[%clk 0:02:45.1]} 13... Be6 {[%clk 0:02:51.4]}
14. Bxc5 {[%clk 0:02:42.6]} 14... dxc5 {[%clk 0:02:51.6]} 15. Nd5 {[%clk
0:02:37.6]} 15... Bxd5 {[%clk 0:02:52.1]} 16. exd5 {[%clk 0:02:37.4]} 16... Qd6
{[%clk 0:02:52.8]} 17. f4 {[%clk 0:02:37]} 17... exf4 {[%clk 0:02:51.9]} 18.
Rfe1+ {[%clk 0:02:28.3]} 18... Kd7 {[%clk 0:02:44.8]} 19. Re6 {[%clk 0:02:05.6]}
19... Qb8 {[%clk 0:02:42.1]} 20. Rxf6 {[%clk 0:01:28.1]} 20... gxf6 {[%clk
0:02:38.3]} 21. Bh3+ {[%clk 0:01:22.9]} 21... Kc7 {[%clk 0:02:30.9]} 22. Qxf4+
{[%clk 0:01:18.9]} 22... Kb6 {[%clk 0:02:31.1]} 23. Qxf6+ {[%clk 0:01:13.5]}
23... Ka7 {[%clk 0:02:31.1]} 24. d6 {[%clk 0:01:13.7]} 24... Qe8 {[%clk
0:02:26.5]} 25. d7 {[%clk 0:01:10.2]} 25... Qe3+ {[%clk 0:02:26.4]} 26. Qf2
{[%clk 0:01:09]} 26... Qxf2+ {[%clk 0:02:19.7]} 27. Kxf2 {[%clk 0:01:09.4]}
27... Kb6 {[%clk 0:02:20.5]} 28. Rd6+ {[%clk 0:01:05.5]} 28... Kc7 {[%clk
0:02:21]} 29. Rf6 {[%clk 0:01:05.5]} 29... h5 {[%clk 0:02:11.7]} 30. Rxf7 {[%clk
0:01:04.6]} 30... Raf8 {[%clk 0:02:11.7]} 31. Rxf8 {[%clk 0:01:01.4]} 31...
Rxf8+ {[%clk 0:02:11.9]} 32. Ke3 {[%clk 0:01:01.5]} 32... Rf6 {[%clk 0:02:05.2]}
33. g4 {[%clk 0:00:55.9]} 33... Re6+ {[%clk 0:01:59.7]} 34. Kf4 {[%clk
0:00:54.1]} 34... hxg4 {[%clk 0:01:49.4]} 35. Bxg4 {[%clk 0:00:54.3]} 35... Rf6+
{[%clk 0:01:49.6]} 36. Bf5 {[%clk 0:00:51.9]} 36... Rh6 {[%clk 0:01:47.7]} 37.
h3 {[%clk 0:00:51.1]} 37... Rb6 {[%clk 0:01:41.6]} 38. b3 {[%clk 0:00:49.5]}
38... Kd8 {[%clk 0:01:39.3]} 39. h4 {[%clk 0:00:49.1]} 39... Ke7 {[%clk
0:01:38.5]} 40. Kg5 {[%clk 0:00:48.9]} 40... Rd6 {[%clk 0:01:38.7]} 41. h5
{[%clk 0:00:48.7]} 41... Rd1 {[%clk 0:01:31.4]} 42. h6 {[%clk 0:00:48.5]} 42...
Rf1 {[%clk 0:01:32]} 43. h7 {[%clk 0:00:46.8]} 43... Rg1+ {[%clk 0:01:32.1]} 44.
Kf4 {[%clk 0:00:45.4]} 44... Rh1 {[%clk 0:01:31.5]} 45. Ke5 {[%clk 0:00:44.9]}
45... Rh5 {[%clk 0:01:29.7]} 46. Ke4 {[%clk 0:00:44.5]} 46... b5 {[%clk
0:01:27.2]} 47. a4 {[%clk 0:00:43.9]} 47... Rh4+ {[%clk 0:01:25]} 48. Kd5 {[%clk
0:00:43]} 48... Rh5 {[%clk 0:01:25.6]} 49. Kc6 {[%clk 0:00:43]} 49... Kd8 {[%clk
0:01:26.2]} 50. Kb6 {[%clk 0:00:38.8]} 50... bxa4 {[%clk 0:01:21.6]} 51. bxa4
{[%clk 0:00:38.9]} 51... c4 {[%clk 0:01:22]} 52. Kxa6 {[%clk 0:00:37.3]} 52...
Kc7 {[%clk 0:01:22.7]} 53. a5 {[%clk 0:00:33.8]} 53... c3 {[%clk 0:01:22.9]} 54.
Ka7 {[%clk 0:00:32.9]} 54... Rh6 {[%clk 0:01:18.6]} 55. a6 {[%clk 0:00:30.1]}
55... Rh2 {[%clk 0:01:10.3]} 56. d8=Q+ {[%clk 0:00:26.1]} 56... Kxd8 {[%clk
0:01:09.9]} 57. Kb7 {[%clk 0:00:26.2]} 57... Rh1 {[%clk 0:01:08.9]} 58. a7
{[%clk 0:00:26]} 58... Rb1+ {[%clk 0:01:09.6]} 59. Kc6 {[%clk 0:00:25.2]} 59...
Ra1 {[%clk 0:01:10.1]} 60. h8=Q+ {[%clk 0:00:24.2]} 60... Ke7 {[%clk 0:01:10.8]}
61. Qg7+ {[%clk 0:00:24.2]} 61... Ke8 {[%clk 0:01:11.4]} 62. Bg6+ {[%clk
0:00:22.5]} 62... Kd8 {[%clk 0:01:11.9]} 63. Qf8# {[%clk 0:00:22.8]} 1-0

[Event "Late-Titled-Tuesday-Blitz-March-12-2024"]
[Site "Chess.com"]
[Date "2024.03.12"]
[Round "10"]
[White "santosalberto1987"]
[Black "Gryffindorac8"]
[Result "1-0"]
[WhiteElo "2541"]
[BlackElo "2376"]
[TimeControl "180+1"]
[EndTime "15:53:10 PDT"]
[Termination "santosalberto1987 won on time"]

1. e4 {[%clk 0:03:00.9]} 1... c5 {[%clk 0:02:59.6]} 2. Nf3 {[%clk 0:03:00.7]}
2... d6 {[%clk 0:02:59.6]} 3. Bb5+ {[%clk 0:03:00.4]} 3... Bd7 {[%clk
0:02:59.5]} 4. c4 {[%clk 0:03:00]} 4... Nf6 {[%clk 0:02:55.2]} 5. Nc3 {[%clk
0:02:59.4]} 5... g6 {[%clk 0:02:53.1]} 6. Bxd7+ {[%clk 0:02:55.1]} 6... Qxd7
{[%clk 0:02:52.1]} 7. d4 {[%clk 0:02:54.9]} 7... cxd4 {[%clk 0:02:52]} 8. Nxd4
{[%clk 0:02:55.8]} 8... Bg7 {[%clk 0:02:52.3]} 9. f3 {[%clk 0:02:54.6]} 9... O-O
{[%clk 0:02:52.1]} 10. Be3 {[%clk 0:02:54.2]} 10... Nc6 {[%clk 0:02:52.2]} 11.
Rc1 {[%clk 0:02:52.3]} 11... e6 {[%clk 0:02:39.8]} 12. O-O {[%clk 0:02:49.1]}
12... d5 {[%clk 0:02:36.3]} 13. Nxc6 {[%clk 0:02:34.7]} 13... bxc6 {[%clk
0:02:35.8]} 14. e5 {[%clk 0:02:34.9]} 14... Ne8 {[%clk 0:02:20]} 15. Bc5 {[%clk
0:02:32.2]} 15... Bxe5 {[%clk 0:02:18.7]} 16. Bxf8 {[%clk 0:02:32.2]} 16... Kxf8
{[%clk 0:02:18.4]} 17. Qd2 {[%clk 0:02:28.1]} 17... Kg8 {[%clk 0:02:04.4]} 18.
cxd5 {[%clk 0:02:28]} 18... cxd5 {[%clk 0:02:01.9]} 19. f4 {[%clk 0:02:13.4]}
19... Bg7 {[%clk 0:01:51]} 20. Kh1 {[%clk 0:02:03.4]} 20... Nd6 {[%clk
0:01:49.9]} 21. b3 {[%clk 0:02:01.2]} 21... h5 {[%clk 0:01:48.1]} 22. Qe2 {[%clk
0:01:44.7]} 22... Nf5 {[%clk 0:01:45.4]} 23. Na4 {[%clk 0:01:41.7]} 23... Qe7
{[%clk 0:01:40.9]} 24. Qf2 {[%clk 0:01:28.7]} 24... Bd4 {[%clk 0:01:39.1]} 25.
Qe1 {[%clk 0:01:24.2]} 25... Kg7 {[%clk 0:01:33.1]} 26. Rf3 {[%clk 0:01:23.2]}
26... a5 {[%clk 0:01:24.2]} 27. Rd3 {[%clk 0:01:20.6]} 27... Qf6 {[%clk
0:01:18.2]} 28. Nc5 {[%clk 0:01:09]} 28... h4 {[%clk 0:01:02.9]} 29. Nd7 {[%clk
0:01:08.5]} 29... Qe7 {[%clk 0:00:59.9]} 30. Ne5 {[%clk 0:01:01.7]} 30... Rh8
{[%clk 0:00:49.5]} 31. h3 {[%clk 0:00:40.9]} 31... Qb7 {[%clk 0:00:36.9]} 32.
Ng4 {[%clk 0:00:36.7]} 32... Qb6 {[%clk 0:00:32.5]} 33. Rcd1 {[%clk 0:00:35.9]}
33... Bc5 {[%clk 0:00:15.4]} 34. Qe5+ {[%clk 0:00:34.9]} 34... Kh7 {[%clk
0:00:12.4]} 35. Nf6+ {[%clk 0:00:34.5]} 35... Kh6 {[%clk 0:00:09.2]} 36. Nd7
{[%clk 0:00:32]} 1-0

[Event "Late-Titled-Tuesday-Blitz-March-12-2024"]
[Site "Chess.com"]
[Date "2024.03.12"]
[Round "10"]
[White "GilbertoHernandezAmura"]
[Black "IraZyne"]
[Result "0-1"]
[WhiteElo "2417"]
[BlackElo "2340"]
[TimeControl "180+1"]
[EndTime "15:53:10 PDT"]
[Termination "IraZyne won by resignation"]

1. d4 {[%clk 0:02:59.9]} 1... d6 {[%clk 0:02:58]} 2. Nf3 {[%clk 0:02:59.4]} 2...
Nf6 {[%clk 0:02:56.8]} 3. Nc3 {[%clk 0:02:59.3]} 3... g6 {[%clk 0:02:55.3]} 4.
e4 {[%clk 0:02:56.8]} 4... Bg7 {[%clk 0:02:55.4]} 5. Be2 {[%clk 0:02:57.3]} 5...
c6 {[%clk 0:02:55.4]} 6. O-O {[%clk 0:02:48.1]} 6... O-O {[%clk 0:02:54.7]} 7.
h3 {[%clk 0:02:44.7]} 7... b5 {[%clk 0:02:54.4]} 8. a3 {[%clk 0:02:42.4]} 8...
Bb7 {[%clk 0:02:53.9]} 9. Bf4 {[%clk 0:02:38.4]} 9... a6 {[%clk 0:02:53.4]} 10.
Bh2 {[%clk 0:02:33.5]} 10... Nbd7 {[%clk 0:02:52.9]} 11. e5 {[%clk 0:02:33.2]}
11... dxe5 {[%clk 0:02:52]} 12. dxe5 {[%clk 0:02:34.1]} 12... Nd5 {[%clk
0:02:51.9]} 13. Nxd5 {[%clk 0:02:23.5]} 13... cxd5 {[%clk 0:02:51.2]} 14. e6
{[%clk 0:02:24]} 14... fxe6 {[%clk 0:02:50.6]} 15. Ng5 {[%clk 0:02:24]} 15...
Rf6 {[%clk 0:02:45.2]} 16. Bg4 {[%clk 0:02:19]} 16... Nf8 {[%clk 0:02:44]} 17.
Be5 {[%clk 0:02:07.2]} 17... Qb6 {[%clk 0:02:32]} 18. Bxf6 {[%clk 0:01:50.2]}
18... exf6 {[%clk 0:02:31.2]} 19. Nf3 {[%clk 0:00:49.4]} 19... h5 {[%clk
0:02:30]} 20. Bxh5 {[%clk 0:00:48]} 20... gxh5 {[%clk 0:02:29.2]} 21. Nh4 {[%clk
0:00:48.6]} 21... Rc8 {[%clk 0:02:11.9]} 22. c3 {[%clk 0:00:47.1]} 22... Qc5
{[%clk 0:02:00.3]} 23. Qxh5 {[%clk 0:00:44.8]} 23... Qc4 {[%clk 0:01:56.2]} 24.
Rae1 {[%clk 0:00:42]} 24... d4 {[%clk 0:01:53.9]} 25. cxd4 {[%clk 0:00:41.2]}
25... Qxd4 {[%clk 0:01:53.4]} 26. Ng6 {[%clk 0:00:32.8]} 26... Nxg6 {[%clk
0:01:52.9]} 27. Qxg6 {[%clk 0:00:33.7]} 27... Bd5 {[%clk 0:01:48.2]} 28. Re3
{[%clk 0:00:28.9]} 28... Kf8 {[%clk 0:01:47.4]} 29. h4 {[%clk 0:00:27.4]} 29...
Qf4 {[%clk 0:01:43.6]} 30. h5 {[%clk 0:00:23.2]} 30... Qh6 {[%clk 0:01:37]} 31.
Qg4 {[%clk 0:00:22.7]} 31... Rc4 {[%clk 0:01:33.8]} 32. Qh3 {[%clk 0:00:21.4]}
32... f5 {[%clk 0:01:26]} 33. Rd1 {[%clk 0:00:20.2]} 33... Qf6 {[%clk
0:01:09.1]} 34. b3 {[%clk 0:00:18.2]} 34... Rg4 {[%clk 0:01:05.6]} 35. f3 {[%clk
0:00:18.3]} 35... Rg5 {[%clk 0:01:02.8]} 36. Qh2 {[%clk 0:00:18.7]} 36... f4
{[%clk 0:00:56]} 37. Re2 {[%clk 0:00:18.2]} 37... Bxf3 {[%clk 0:00:54.5]} 38.
Red2 {[%clk 0:00:16.3]} 38... Bxd1 {[%clk 0:00:53.7]} 39. Rxd1 {[%clk
0:00:17.2]} 39... Kg8 {[%clk 0:00:53.5]} 40. Kh1 {[%clk 0:00:15.9]} 40... Kh7
{[%clk 0:00:52]} 41. Qh3 {[%clk 0:00:15.2]} 41... e5 {[%clk 0:00:51.3]} 42. Qd3+
{[%clk 0:00:15.1]} 42... Qf5 {[%clk 0:00:51.5]} 43. Qf3 {[%clk 0:00:15.4]} 43...
Rxh5+ {[%clk 0:00:51.3]} 44. Kg1 {[%clk 0:00:15.9]} 44... e4 {[%clk 0:00:51.5]}
45. Qe2 {[%clk 0:00:16.3]} 45... f3 {[%clk 0:00:49.9]} 46. Qf2 {[%clk
0:00:16.8]} 46... Qg4 {[%clk 0:00:44.3]} 0-1

[Event "Late-Titled-Tuesday-Blitz-March-12-2024"]
[Site "Chess.com"]
[Date "2024.03.12"]
[Round "10"]
[White "Rud_2008"]
[Black "GotCheeseCheckers"]
[Result "1-0"]
[WhiteElo "2793"]
[BlackElo "2516"]
[TimeControl "180+1"]
[EndTime "15:53:11 PDT"]
[Termination "Rud_2008 won by resignation"]

1. e4 {[%clk 0:03:00.9]} 1... c5 {[%clk 0:02:58]} 2. Nf3 {[%clk 0:03:00.7]} 2...
Nf6 {[%clk 0:02:58.7]} 3. e5 {[%clk 0:03:00.3]} 3... Nd5 {[%clk 0:02:59.3]} 4.
Nc3 {[%clk 0:03:00.8]} 4... e6 {[%clk 0:03:00]} 5. Ne4 {[%clk 0:03:00.8]} 5...
f5 {[%clk 0:02:59.8]} 6. Nc3 {[%clk 0:03:01.4]} 6... Nxc3 {[%clk 0:02:57.4]} 7.
dxc3 {[%clk 0:03:02.3]} 7... Nc6 {[%clk 0:02:57.8]} 8. Bf4 {[%clk 0:02:59.6]}
8... Be7 {[%clk 0:02:57.8]} 9. Qd2 {[%clk 0:02:58.3]} 9... b6 {[%clk 0:02:58]}
10. O-O-O {[%clk 0:02:56.2]} 10... Bb7 {[%clk 0:02:58.7]} 11. h4 {[%clk
0:02:51.5]} 11... Qc7 {[%clk 0:02:58.6]} 12. Bb5 {[%clk 0:02:20.7]} 12... a6
{[%clk 0:02:51.1]} 13. Bd3 {[%clk 0:02:19.8]} 13... O-O-O {[%clk 0:02:45.4]} 14.
h5 {[%clk 0:02:10.6]} 14... Kb8 {[%clk 0:02:44.3]} 15. Qe3 {[%clk 0:02:00.7]}
15... Ka7 {[%clk 0:02:42.4]} 16. Rhg1 {[%clk 0:01:53.1]} 16... Rhf8 {[%clk
0:02:08]} 17. g4 {[%clk 0:01:50.8]} 17... fxg4 {[%clk 0:02:08.9]} 18. Rxg4
{[%clk 0:01:51.2]} 18... c4 {[%clk 0:01:52.6]} 19. Bxh7 {[%clk 0:01:45.5]} 19...
Bc5 {[%clk 0:01:52.4]} 20. Nd4 {[%clk 0:01:45.3]} 20... Ne7 {[%clk 0:01:51]} 21.
Bg5 {[%clk 0:01:40.2]} 21... Nd5 {[%clk 0:01:49.6]} 22. Qe2 {[%clk 0:01:39.8]}
22... Rc8 {[%clk 0:01:25.5]} 23. Bd2 {[%clk 0:01:21.5]} 23... b5 {[%clk
0:01:12.9]} 24. Be1 {[%clk 0:01:15.1]} 24... b4 {[%clk 0:00:52]} 25. cxb4 {[%clk
0:01:08.2]} 25... Bxb4 {[%clk 0:00:50]} 26. c3 {[%clk 0:01:05.9]} 26... Bc5
{[%clk 0:00:47.3]} 27. Rxg7 {[%clk 0:01:05.1]} 27... Nf4 {[%clk 0:00:34.5]} 28.
Qc2 {[%clk 0:00:53.5]} 28... Qxe5 {[%clk 0:00:29.2]} 29. Rxd7 {[%clk 0:00:51.2]}
29... Rfd8 {[%clk 0:00:29.3]} 30. Nf3 {[%clk 0:00:22.3]} 30... Qf6 {[%clk
0:00:14.7]} 31. Be4 {[%clk 0:00:19.9]} 31... Nd3+ {[%clk 0:00:12.6]} 32. R1xd3
{[%clk 0:00:17.1]} 32... cxd3 {[%clk 0:00:08.6]} 33. Rxb7+ {[%clk 0:00:16.8]}
33... Ka8 {[%clk 0:00:09.3]} 34. Rd7+ {[%clk 0:00:17.2]} 34... Kb8 {[%clk
0:00:09.4]} 35. Qb3+ {[%clk 0:00:17.6]} 1-0

[Event "Late-Titled-Tuesday-Blitz-March-12-2024"]
[Site "Chess.com"]
[Date "2024.03.12"]
[Round "10"]
[White "ccccvhhhj"]
[Black "GoltsevDmitry2000"]
[Result "0-1"]
[WhiteElo "2488"]
[BlackElo "2719"]
[TimeControl "180+1"]
[EndTime "15:53:14 PDT"]
[Termination "GoltsevDmitry2000 won on time"]

1. e4 {[%clk 0:03:00.9]} 1... e6 {[%clk 0:02:59.9]} 2. Nf3 {[%clk 0:03:01.7]}
2... d5 {[%clk 0:03:00.8]} 3. e5 {[%clk 0:03:02.3]} 3... c5 {[%clk 0:03:00.3]}
4. b4 {[%clk 0:03:03]} 4... cxb4 {[%clk 0:03:00]} 5. a3 {[%clk 0:03:03.7]} 5...
Nc6 {[%clk 0:03:00.1]} 6. axb4 {[%clk 0:03:03.8]} 6... Bxb4 {[%clk 0:03:01]} 7.
c3 {[%clk 0:03:04.5]} 7... Be7 {[%clk 0:03:00.1]} 8. d4 {[%clk 0:03:05.4]} 8...
h5 {[%clk 0:03:00.5]} 9. Bd3 {[%clk 0:03:05.7]} 9... g5 {[%clk 0:03:00.8]} 10.
O-O {[%clk 0:03:05.3]} 10... g4 {[%clk 0:03:01.1]} 11. Ne1 {[%clk 0:03:04.6]}
11... Nh6 {[%clk 0:03:00.8]} 12. Na3 {[%clk 0:02:57.5]} 12... Nf5 {[%clk
0:02:58.9]} 13. f3 {[%clk 0:02:54.8]} 13... g3 {[%clk 0:02:52.2]} 14. h3 {[%clk
0:02:48.5]} 14... a6 {[%clk 0:02:48.9]} 15. Bxf5 {[%clk 0:02:42]} 15... exf5
{[%clk 0:02:48.7]} 16. Nb5 {[%clk 0:02:42.9]} 16... Be6 {[%clk 0:02:31.3]} 17.
Nd6+ {[%clk 0:02:42.6]} 17... Bxd6 {[%clk 0:02:30]} 18. exd6 {[%clk 0:02:43.5]}
18... Qxd6 {[%clk 0:02:30.5]} 19. Ba3 {[%clk 0:02:41]} 19... Qd7 {[%clk
0:02:25.1]} 20. Nd3 {[%clk 0:02:38.5]} 20... Na5 {[%clk 0:02:16.6]} 21. Re1
{[%clk 0:02:01.1]} 21... Nc4 {[%clk 0:02:14.4]} 22. Ne5 {[%clk 0:01:45.9]} 22...
Nxe5 {[%clk 0:02:05.8]} 23. Rxe5 {[%clk 0:01:45.3]} 23... Rc8 {[%clk 0:02:04.2]}
24. Qe1 {[%clk 0:01:36]} 24... a5 {[%clk 0:01:57.5]} 25. Bc5 {[%clk 0:01:33]}
25... Qc6 {[%clk 0:01:49.2]} 26. Qxg3 {[%clk 0:01:25.7]} 26... b6 {[%clk
0:01:41.5]} 27. Rxe6+ {[%clk 0:00:53.3]} 27... Qxe6 {[%clk 0:01:02.8]} 28. Re1
{[%clk 0:00:51.1]} 28... bxc5 {[%clk 0:01:02.7]} 29. Rxe6+ {[%clk 0:00:49.9]}
29... fxe6 {[%clk 0:01:03.6]} 30. Qg7 {[%clk 0:00:49.7]} 30... Rf8 {[%clk
0:01:00.4]} 31. Qb7 {[%clk 0:00:37.5]} 31... Kd8 {[%clk 0:00:53.9]} 32. Qb6+
{[%clk 0:00:36]} 32... Ke7 {[%clk 0:00:48.7]} 33. dxc5 {[%clk 0:00:34.8]} 33...
Ra8 {[%clk 0:00:45.1]} 34. Qd6+ {[%clk 0:00:31.1]} 34... Kf7 {[%clk 0:00:44.3]}
35. Qc7+ {[%clk 0:00:24.3]} 35... Kf6 {[%clk 0:00:43.4]} 36. f4 {[%clk
0:00:22.5]} 36... a4 {[%clk 0:00:43.6]} 37. Qe5+ {[%clk 0:00:22.5]} 37... Kf7
{[%clk 0:00:44.2]} 38. Qc7+ {[%clk 0:00:22.8]} 38... Kg6 {[%clk 0:00:44.9]} 39.
Qd7 {[%clk 0:00:12.3]} 39... Rfe8 {[%clk 0:00:43.1]} 40. Qb5 {[%clk 0:00:04.4]}
40... a3 {[%clk 0:00:42.7]} 41. Qb1 {[%clk 0:00:04.5]} 41... a2 {[%clk
0:00:43.3]} 42. Qa1 {[%clk 0:00:04.8]} 42... Reb8 {[%clk 0:00:43.9]} 43. Kh2
{[%clk 0:00:04.6]} 43... Rb1 {[%clk 0:00:44.1]} 0-1

[Event "Late-Titled-Tuesday-Blitz-March-12-2024"]
[Site "Chess.com"]
[Date "2024.03.12"]
[Round "10"]
[White "FMYiLiu"]
[Black "Roedor"]
[Result "1-0"]
[WhiteElo "2479"]
[BlackElo "2273"]
[TimeControl "180+1"]
[EndTime "15:53:15 PDT"]
[Termination "FMYiLiu won by resignation"]

1. d4 {[%clk 0:03:00.9]} 1... Nf6 {[%clk 0:02:59.7]} 2. Nc3 {[%clk 0:03:01.4]}
2... d5 {[%clk 0:02:59.2]} 3. Bf4 {[%clk 0:03:01.7]} 3... g6 {[%clk 0:02:59.3]}
4. e3 {[%clk 0:03:01.4]} 4... Bg7 {[%clk 0:02:59.6]} 5. h4 {[%clk 0:03:02.1]}
5... c5 {[%clk 0:02:58.6]} 6. Nb5 {[%clk 0:03:00.8]} 6... Na6 {[%clk 0:02:57.7]}
7. c3 {[%clk 0:02:58.9]} 7... O-O {[%clk 0:02:57.3]} 8. h5 {[%clk 0:02:52.5]}
8... Nxh5 {[%clk 0:02:52.3]} 9. Rxh5 {[%clk 0:02:52.2]} 9... gxh5 {[%clk
0:02:52.5]} 10. Qxh5 {[%clk 0:02:52.9]} 10... cxd4 {[%clk 0:02:48.4]} 11. exd4
{[%clk 0:02:51.5]} 11... f6 {[%clk 0:02:37]} 12. Bd3 {[%clk 0:02:50.8]} 12... f5
{[%clk 0:02:35.3]} 13. Nf3 {[%clk 0:02:50.9]} 13... Qe8 {[%clk 0:02:30.6]} 14.
Qh2 {[%clk 0:02:48.7]} 14... Qg6 {[%clk 0:02:25.1]} 15. O-O-O {[%clk 0:02:48.8]}
15... Bd7 {[%clk 0:02:25.2]} 16. Rh1 {[%clk 0:02:34.7]} 16... Rac8 {[%clk
0:02:23.8]} 17. Ne5 {[%clk 0:02:25.4]} 17... Bxe5 {[%clk 0:02:20.5]} 18. Bxe5
{[%clk 0:02:26.3]} 18... Nb4 {[%clk 0:02:16.9]} 19. Be2 {[%clk 0:02:26.3]} 19...
Bxb5 {[%clk 0:02:07.9]} 20. Bxb5 {[%clk 0:02:27.2]} 20... f4 {[%clk 0:01:59.2]}
21. Ba4 {[%clk 0:02:08.1]} 21... Nd3+ {[%clk 0:01:55.2]} 22. Kd2 {[%clk
0:02:08.2]} 22... Nxf2 {[%clk 0:01:48.3]} 23. Bc2 {[%clk 0:02:07.3]} 23... Ne4+
{[%clk 0:01:44]} 24. Kc1 {[%clk 0:02:07.3]} 24... Rf5 {[%clk 0:01:34.6]} 25. Qh4
{[%clk 0:01:59.9]} 25... Re8 {[%clk 0:01:07.7]} 26. Bxf4 {[%clk 0:01:53.5]}
26... Ref8 {[%clk 0:01:03.8]} 27. g3 {[%clk 0:01:51.7]} 27... h5 {[%clk
0:00:55.1]} 28. Qxe7 {[%clk 0:01:49.7]} 28... Nxg3 {[%clk 0:00:51.2]} 29. Re1
{[%clk 0:01:14.7]} 29... h4 {[%clk 0:00:39.3]} 30. Be5 {[%clk 0:01:00.7]} 30...
Qg5+ {[%clk 0:00:38]} 31. Qxg5+ {[%clk 0:00:59.5]} 31... Rxg5 {[%clk 0:00:38.9]}
32. Bb3 {[%clk 0:00:58.2]} 32... Rf1 {[%clk 0:00:35.7]} 33. Bxd5+ {[%clk
0:00:57.5]} 33... Kh7 {[%clk 0:00:35.5]} 34. Bxg3 {[%clk 0:00:57.4]} 34... hxg3
{[%clk 0:00:34.6]} 35. Rxf1 {[%clk 0:00:57.1]} 35... Rxd5 {[%clk 0:00:35.3]} 36.
Rg1 {[%clk 0:00:52.3]} 36... Rg5 {[%clk 0:00:35.1]} 37. Kd2 {[%clk 0:00:52.8]}
37... Kh6 {[%clk 0:00:35.6]} 38. Ke3 {[%clk 0:00:53.5]} 38... Kh5 {[%clk
0:00:36]} 39. Kf4 {[%clk 0:00:52.1]} 39... Rg4+ {[%clk 0:00:36.2]} 40. Kf3
{[%clk 0:00:52.5]} 40... Kh4 {[%clk 0:00:31.1]} 41. Rh1+ {[%clk 0:00:52.7]}
41... Kg5 {[%clk 0:00:31.5]} 42. Rh8 {[%clk 0:00:48.9]} 42... Kf5 {[%clk
0:00:11.6]} 43. Rf8+ {[%clk 0:00:47.9]} 43... Ke6 {[%clk 0:00:11.8]} 44. Kxg4
{[%clk 0:00:46.6]} 44... g2 {[%clk 0:00:11.8]} 45. Re8+ {[%clk 0:00:47.2]} 45...
Kd5 {[%clk 0:00:10.4]} 46. Re1 {[%clk 0:00:48.1]} 46... Kc4 {[%clk 0:00:11.2]}
47. Rg1 {[%clk 0:00:49]} 47... Kd3 {[%clk 0:00:12]} 48. Rxg2 {[%clk 0:00:49.6]}
1-0